{"text_format":"1","workbook":"xlsx","n_sheets":2,"sheets":["nyers","matarka"],"not_rendered":{"charts":0,"images":0,"macros":1,"external_links":0,"defined_names":0,"comments":0,"pivot_tables":0},"unopened":[],"bounds":{"document_bytes":16777216,"sheet_cells":100000,"rows_first":2000,"rows_last":500,"rows_between":2000,"halvings":0,"cell_chars":16384,"cell_head_chars":4096},"cells_cut":0,"cells_raw":0,"read":"whole","date_system":"1900"}

{"sheet":"nyers","index":0,"n_rows":150,"n_cols":11,"rows_kept":150,"cut":false,"hidden":false,"merged":[[124,3,125,3],[114,3,115,3],[116,3,117,3],[118,2,119,2],[118,3,119,3],[120,3,121,3],[122,2,123,2],[122,3,123,3],[112,3,113,3],[90,3,91,3],[92,3,93,3],[94,3,95,3],[96,3,97,3],[98,3,99,3],[102,3,103,3],[104,3,105,3],[106,3,107,3],[108,3,109,3],[110,3,111,3],[100,2,101,2],[100,3,101,3],[80,3,81,3],[82,2,83,2],[82,3,83,3],[84,3,85,3],[86,3,87,3],[88,3,89,3],[78,3,79,3],[60,3,61,3],[62,2,63,2],[62,3,63,3],[64,3,65,3],[66,2,67,2],[66,3,67,3],[68,3,69,3],[70,3,71,3],[72,3,73,3],[74,3,75,3],[76,3,77,3],[58,3,59,3],[42,3,43,3],[44,2,45,2],[44,3,45,3],[46,3,47,3],[48,3,49,3],[50,3,51,3],[52,2,53,2],[52,3,53,3],[54,2,55,2],[54,3,55,3],[56,3,57,3],[40,3,41,3],[24,2,25,2],[24,3,25,3],[26,3,27,3],[28,3,29,3],[30,3,31,3],[32,3,33,3],[34,3,35,3],[36,3,37,3],[38,3,39,3],[22,3,23,3],[0,3,1,3],[2,3,3,3],[4,3,5,3],[6,3,7,3],[8,3,9,3],[10,3,11,3],[12,3,13,3],[14,3,15,3],[16,3,17,3],[18,3,19,3],[20,3,21,3],[126,3,127,3],[128,2,129,2],[128,3,129,3],[130,2,131,2],[130,3,131,3],[132,3,133,3],[134,2,135,2],[134,3,135,3],[136,3,137,3],[138,3,139,3],[140,3,141,3],[142,3,143,3],[144,3,145,3],[146,3,147,3],[148,3,149,3]]}
["miau214","Pitlik László","Alternatív modellek kockázat-menedzsmentje","(+)",null,{"$f":"A1","v":"miau214"},{"$f":"B1","v":"Pitlik László"},":","Risk management of alternative models","  xx  ","http://miau.gau.hu/miau/214/risk_management_of_solutions.xlsx"]
[null,"(My-X team):","(Risk management of alternative models)"]
["miau214","Pitlik László","Hasonlóságelemzés alternatív modelljei","(+)",null,"miau214","Pitlik László",":","Alternative models in similarity analyses","  xx  ","http://miau.gau.hu/miau/214/alter_coco.xlsx"]
[null,"(My-X team):","(Alternative models in similarity analyses)"]
["miau214","Pitlik László","Műszaki/üzemelési és marketing/gazdasági hatások közötti kapcsolatok feltárása","(+)",null,"miau214","Pitlik László",":","Exploring connections between operation and marketing effects","  xx  ","http://miau.gau.hu/miau/214/operation_marketing_mixed_model.xlsx"]
[null,"(My-X team):","(Exploring connections between operation and marketing effects)"]
["miau214","Pitlik László (jun)","A kvalitatív módszer egy értelmezése \u0096 és szerepe a kvantitatív kutatástervezésben","(+)",null,"miau214","Pitlik László (jun)",":","A kvalitatív módszer egy értelmezése \u0096 és szerepe a kvantitatív kutatástervezésben","  xx  ","http://miau.gau.hu/miau/214/Kvalitativ_ISSZK13-K2_PitlikL.docx"]
[null,"(My-X team):","(Interpretation of a qualitative method and its role in the quantitative reserach planning)"]
["miau214","Alföldy-Boruss András, Pitlik László","NG Stressz-menedzsment","(+)",null,"miau214","Alföldy@Boruss András, Pitlik László",":","Next Generation Stress Management","  xx  ","http://miau.gau.hu/miau/214/NGStress.pdf"]
[null,"(My-X team):","(Next Generation Stress Management)"]
["miau214","Alföldy-Boruss András, Pitlik László","NG Stressz-menedzsment","(+)",null,"miau214","Alföldy@Boruss András, Pitlik László",":","Next Generation Stress Management","  xx  ","http://miau.gau.hu/miau/214/NGStress.pptx"]
[null,"(My-X team):","(Next Generation Stress Management)"]
["miau214","Alföldy-Boruss András, Pitlik László","NG Stressz-menedzsment","(+)",null,"miau214","Alföldy@Boruss András, Pitlik László",":","Next Generation Stress Management","  xx  ","http://miau.gau.hu/miau/214/NGStress.mp4"]
[null,"(My-X team):","(Next Generation Stress Management)"]
["miau214","Zsolt FÜLÖP, Péter KOLLÁR, László PITLIK","Robot-coach, avagy a kompetencia-alapú csapatépítés új korszaka","(+)",null,"miau214","Zsolt Fülöp, Péter Kollár, László Pitlik",":","Robot-coach or a New Approach of Competency-based Human Development","  xx  ","http://miau.gau.hu/miau/214/wcci_v3_ENG_pl.docx"]
[null,"(SZIE GTK TTI):","(Robot-coach or a New Approach of Competency-based Human Development)"]
["miau214","Pitlik László","Eltört idősorok elemzése szemi-kauzális modellek alkotása céljából","(+)",null,"miau214","Pitlik László",":","Analyse of broken time series in semi-causal approaches","  xx  ","http://miau.gau.hu/miau/214/semi_causality.xlsx"]
[null,"(My-X team):","(Analyse of broken timeseries in semi-causal approaches)"]
["miau214","Pitlik László","Párhuzamos idősorok elemzése szemi-kauzális modellek alkotása céljából","(+)",null,"miau214","Pitlik László",":","Analyse of parellel time series in semi-causal approaches","  xx  ","http://miau.gau.hu/miau/214/parallel_timeseries.xlsx"]
[null,"(My-X team):","(Analyse of parellel timeseries in semi-causal approaches)"]
["miau214","Pitlik László, Jacsó Ferenc","Idősoros energia-fogyasztási adatok kiugró értékeinek automatizált feltárási lehetőségei","(+)",null,"miau214","Pitlik László, Jacsó Ferenc",":","Idősoros energia-fogyasztási adatok kiugró értékeinek automatizált feltárási lehetőségei","  xx  ","http://miau.gau.hu/miau/214/idosoros_energiafogyasztas_kiugro_ertekei.docx"]
[null,"(My-X team):","(Possibilities of automated outlier detection in time series in case of energy consumptions)"]
["miau214","Horváth Mónika Kitti, Pitlik László","Milyen kulturális tényezők lehetnek hatással az USA tagállamainak mozgástudatosságára? - 2. rész","(+)",null,"miau214","Horváth Mónika Kitti, Pitlik László",":","Milyen kulturális tényezők lehetnek hatással az USA tagállamainak mozgástudatosságára? - 2. rész","  xx  ","http://miau.gau.hu/miau/214/szie_multikulti_sport.docx"]
[null,"(My-X team):","(What kind of cultural parameters having effect on movement- and body-awareness in states of USA? - Part II.)"]
["miau215","László Pitlik, Dávid Fehér, Ferenc Szani, Mátyás Pitlik, Zsolt Fülöp, Péter Kollár ","gUd-mOOsic: a complex simulation tool for learning and teaching music","(+)",null,{"$f":"A25","v":"miau215"},{"$f":"B25","v":"László Pitlik, Dávid Fehér, Ferenc Szani, Mátyás Pitlik, Zsolt Fülöp, Péter Kollár "},":",{"$f":"C25","v":"gUd-mOOsic: a complex simulation tool for learning and teaching music"},"  xx  ","http://miau.gau.hu/miau/215/gud_moosic_v2.docx"]
[null,"(MY-X team):"]
["miau215","Pitlik László, Jacsó Ferenc","Távközlési bázisállomások monitoring és kontrolling rendszerének fejlesztése","(+)",null,{"$f":"A27","v":"miau215"},{"$f":"B27","v":"Pitlik László, Jacsó Ferenc"},":",{"$f":"C27","v":"Távközlési bázisállomások monitoring és kontrolling rendszerének fejlesztése"},"  xx  ","http://miau.gau.hu/miau/215/bazis_v2.doc"]
[null,"(MY-X team):","(Development of a controlling/monitoring system for basic stations int he tele-communication)"]
["miau215","Pitlik László (jun)","A matematikai szorongás hasonlóságelemzési modellje","(+)",null,{"$f":"A29","v":"miau215"},{"$f":"B29","v":"Pitlik László (jun)"},":",{"$f":"C29","v":"A matematikai szorongás hasonlóságelemzési modellje"},"  xx  ","http://miau.gau.hu/miau/215/kardos.pptx"]
[null,"(MY-X team):","(A model about the distress concerning courses in mathematics)"]
["miau215","Fülöp Zsolt, Kollár Péter, Pitlik László","Robot-coach, avagy a kompetencia-alapú csapatépítés új korszaka","(+)",null,{"$f":"A31","v":"miau215"},{"$f":"B31","v":"Fülöp Zsolt, Kollár Péter, Pitlik László"},":","Robot-coach or a New Approach of Competency-based Human Development","  xx  ","http://miau.gau.hu/miau/215/WCCI2016.pptx"]
[null,"(MY-X team):","(Robot-coach or a New Approach of Competency-based Human Development)"]
["miau215","Fülöp Zsolt, Kollár Péter, Pitlik László","Robot-coach, avagy a kompetencia-alapú csapatépítés új korszaka","(+)",null,{"$f":"A33","v":"miau215"},{"$f":"B33","v":"Fülöp Zsolt, Kollár Péter, Pitlik László"},":","Robot-coach or a New Approach of Competency-based Human Development","  xx  ","http://miau.gau.hu/miau/215/wcci.html"]
[null,"(MY-X team):","(Robot-coach or a New Approach of Competency-based Human Development)"]
["miau215","Pitlik László, Pitlik László (jun), Pitlik Mátyás, Pitlik Marcell","Solver-alapú feladatmegoldás: Példatár II.","(+)",null,{"$f":"A35","v":"miau215"},{"$f":"B35","v":"Pitlik László, Pitlik László (jun), Pitlik Mátyás, Pitlik Marcell"},":",{"$f":"C35","v":"Solver-alapú feladatmegoldás: Példatár II."},"  xx  ","http://miau.gau.hu/miau/215/solver_csodak_002.xlsx"]
[null,"(MY-X team):","(Solver-based problem solving: Case II.)"]
["miau215","Pitlik László","A legjobb modell levezetése","(+)",null,{"$f":"A37","v":"miau215"},{"$f":"B37","v":"Pitlik László"},":","Deriving the best model","  xx  ","http://miau.gau.hu/miau/215/instability_potential.xlsx"]
[null,"(MY-X team):","(Deriving the best model)"]
["miau215","Pitlik László","Regressziós modellek exploratív buborék szabályokkal","(+)",null,{"$f":"A39","v":"miau215"},{"$f":"B39","v":"Pitlik László"},":","Regression models with explorative bubble rules","  xx  ","http://miau.gau.hu/miau/215/regressions_with_bubbles.xlsx"]
[null,"(MY-X team):","(Regression models with explorative bubble rules)"]
["miau215","Pitlik László, Jacsó Ferenc","Gyanúgenerálás lehetőségei energia-fogyasztási idősoros adatok alapján","(+)",null,{"$f":"A41","v":"miau215"},{"$f":"B41","v":"Pitlik László, Jacsó Ferenc"},":",{"$f":"C41","v":"Gyanúgenerálás lehetőségei energia-fogyasztási idősoros adatok alapján"},"  xx  ","http://miau.gau.hu/miau/215/Gyanugeneralas_energiafogyasztas_v1.docx"]
[null,"(MY-X team):","(Possibilities of suspicion generating based on data assets about energy uses)"]
["miau215","Pitlik László","Események időbeliségének mintázatai, avagy hol húzódnak a határok a hit/asztrológia/tudomány fogalmai kapcsán?","(+)",null,{"$f":"A43","v":"miau215"},{"$f":"B43","v":"Pitlik László"},":",{"$f":"C43","v":"Események időbeliségének mintázatai, avagy hol húzódnak a határok a hit/asztrológia/tudomány fogalmai kapcsán?"},"  xx  ","http://miau.gau.hu/miau/215/asztrologia_full_v2.doc"]
[null,"(My-X team):","(Exploring potential time-patterns of occurrences, or is there any clear borders between religion/astrology/science?)"]
["miau216","Pitlik László","Deriving and interpretation of chained and parallel estimations","(+)",null,{"$f":"A45","v":"miau216"},{"$f":"B45","v":"Pitlik László"},":",{"$f":"C45","v":"Deriving and interpretation of chained and parallel estimations"},"  xx  ","http://miau.gau.hu/miau/216/chain_models.xlsx"]
[null,"(MY-X team):"]
["miau216","Pitlik László, Kalotaszegi András, Buczkó József","Precíziós gazdálkodás az emberi agyban - I. rész","(+)",null,{"$f":"A47","v":"miau216"},{"$f":"B47","v":"Pitlik László, Kalotaszegi András, Buczkó József"},":",{"$f":"C47","v":"Precíziós gazdálkodás az emberi agyban - I. rész"},"  xx  ","http://miau.gau.hu/miau/216/eeg_acc_v1.xls"]
[null,"(MY-X team):","(Precision farming in the human brain - Part I.)"]
["miau216","Pitlik László, Kalotaszegi András, Buczkó József","Precíziós gazdálkodás az emberi agyban - II. rész","(+)",null,{"$f":"A49","v":"miau216"},{"$f":"B49","v":"Pitlik László, Kalotaszegi András, Buczkó József"},":",{"$f":"C49","v":"Precíziós gazdálkodás az emberi agyban - II. rész"},"  xx  ","http://miau.gau.hu/miau/216/fft_v1.xlsx"]
[null,"(MY-X team):","(Precision farming in the human brain - Part II.)"]
["miau216","Pitlik László","Kutatási terv: a deep-neural-network gráfjai mennyiben feleltethetők meg a hasonlóságelemzések lépcsős függvényeinek?","(+)",null,{"$f":"A51","v":"miau216"},{"$f":"B51","v":"Pitlik László"},":",{"$f":"C51","v":"Kutatási terv: a deep-neural-network gráfjai mennyiben feleltethetők meg a hasonlóságelemzések lépcsős függvényeinek?"},"  xx  ","http://miau.gau.hu/miau/216/graphs_of_deep_learning_vs_similarities_and_staircase_functions.docx"]
[null,"(MY-X team):","(Is there any consolidation possibility between the graphs in DNNs and the staircase functions in COCO?)"]
["miau216","László Pitlik, Zsolt Fülöp, Péter Kollár, Imre Madarász ","Exploring relative instances of exposure in the equilibrium of migration processes based on population characteristics","(+)",null,{"$f":"A53","v":"miau216"},{"$f":"B53","v":"László Pitlik, Zsolt Fülöp, Péter Kollár, Imre Madarász "},":",{"$f":"C53","v":"Exploring relative instances of exposure in the equilibrium of migration processes based on population characteristics"},"  xx  ","http://miau.gau.hu/miau/216/JKEC-S-16-00168.pdf"]
[null,"(MY-X team):"]
["miau216","József Poór, Zuzana Dvořáková, László Pitlik, Katalin Dobrai, Zsuzsa Karoliny, Ferenc Farkas, Ildikó Éva Kovács ","Knowledge Management in Human Resource Management in Local Foreign Owned Subsidiaries - Focus Central and Eastern Europe","(+)",null,{"$f":"A55","v":"miau216"},{"$f":"B55","v":"József Poór, Zuzana Dvořáková, László Pitlik, Katalin Dobrai, Zsuzsa Karoliny, Ferenc Farkas, Ildikó Éva Kovács "},":",{"$f":"C55","v":"Knowledge Management in Human Resource Management in Local Foreign Owned Subsidiaries - Focus Central and Eastern Europe"},"  xx  ","http://miau.gau.hu/miau/216/Knowledge_Management in Local Subsidiaries_AIB_Prague_2016_submission.pdf"]
[null,"(CEEIRT team):"]
["miau216","Pitlik László","A német tanácsadás sajátosságainak kritikai/kooperatív értelmezése","(+)",null,{"$f":"A57","v":"miau216"},{"$f":"B57","v":"Pitlik László"},":",{"$f":"C57","v":"A német tanácsadás sajátosságainak kritikai/kooperatív értelmezése"},"  xx  ","http://miau.gau.hu/miau/216/nemet_tanacsadas.docx"]
[null,"(MY-X team):","(Critical and co-operative interpretation of the consulting characteristics in Germany)"]
["miau216","Pitlik László","Kazohin demokrácia, avagy a többség mibenlétének alakzatai","(+)",null,{"$f":"A59","v":"miau216"},{"$f":"B59","v":"Pitlik László"},":",{"$f":"C59","v":"Kazohin demokrácia, avagy a többség mibenlétének alakzatai"},"  xx  ","http://miau.gau.hu/miau/216/rede_v1.docx"]
[null,"(MY-X team):","(Term of democracy based on Kazohinia, or force fields of the majority as such)"]
["miau216","Pitlik László","Intuitív/rendszerszintü erötérfelismerés a mobilitás racionális mozgatórugóinak feltárására\u0096avagy a szociofizika fogalma","(+)",null,{"$f":"A61","v":"miau216"},{"$f":"B61","v":"Pitlik László"},":",{"$f":"C61","v":"Intuitív/rendszerszintü erötérfelismerés a mobilitás racionális mozgatórugóinak feltárására\u0096avagy a szociofizika fogalma"},"  xx  ","http://miau.gau.hu/miau/215/szocio_fizika_full.doc"]
[null,"(SZIE GTK TTI KFI):","(Exploration of force fields based on intuitive/systematic approaches concerning mobility or establishing of socio-physics)"]
["miau217","Horváth Gergő","Onlinemarkt für Lebensmittel in Deutschland: Status-Quo, Grenzen und Entwicklungspotenziale","(+)",null,{"$f":"A63","v":"miau217"},{"$f":"B63","v":"Horváth Gergő"},":",{"$f":"C63","v":"Onlinemarkt für Lebensmittel in Deutschland: Status-Quo, Grenzen und Entwicklungspotenziale"},"  xx  ","http://miau.gau.hu/miau/217/Gergo-Horvath-Seminararbeit.pdf"]
[null,"(SZIE GTK):"]
["miau217","Pitlik Dóra","Zeneszerzés potenciális szintje az általános iskola alsó tagozatában","(+)",null,{"$f":"A65","v":"miau217"},{"$f":"B65","v":"Pitlik Dóra"},":",{"$f":"C65","v":"Zeneszerzés potenciális szintje az általános iskola alsó tagozatában"},"  xx  ","http://miau.gau.hu/miau/217/PD-kottavetok.pdf"]
[null,"(MY-X team):","(Level of music quality created by kids under the teenager treshold)"]
["miau217","Pitlik László, Pitlik László (jun), Pitlik Mátyás, Pitlik Marcell","Solver csodák példatár IV. (Case studies about using Solver - Part IV.)","(+)",null,{"$f":"A67","v":"miau217"},{"$f":"B67","v":"Pitlik László, Pitlik László (jun), Pitlik Mátyás, Pitlik Marcell"},":",{"$f":"C67","v":"Solver csodák példatár IV. (Case studies about using Solver - Part IV.)"},"  xx  ","http://miau.gau.hu/miau/217/solver_csodak_004.xlsx"]
[null,"(MY-X team):"]
["miau217","Pitlik László","MIAÚ, a nagykorúvá vált médium, avagy távol a kánontól, s mégis az élbolyban?!","(+)",null,{"$f":"A69","v":"miau217"},{"$f":"B69","v":"Pitlik László"},":",{"$f":"C69","v":"MIAÚ, a nagykorúvá vált médium, avagy távol a kánontól, s mégis az élbolyban?!"},"  xx  ","http://miau.gau.hu/miau/217/miau_1998_2016.docx"]
[null,"(MY-X team):","(MIAU, the grown-up medium, or beyond scientific canon, yet in the forefront of RDI?!)"]
["miau217","Szergej Vinogradov, Pitlik László","Kérdőív-alapú elemzések lehetőségi körének kombinatorikai áttekintése - II. rész","(+)",null,{"$f":"A71","v":"miau217"},{"$f":"B71","v":"Szergej Vinogradov, Pitlik László"},":",{"$f":"C71","v":"Kérdőív-alapú elemzések lehetőségi körének kombinatorikai áttekintése - II. rész"},"  xx  ","http://miau.gau.hu/miau/217/misfogkep_v2.doc"]
[null,"(MY-X team):","(Combinatorial space of questionnaire-based analytical possibilities - Part II.)"]
["miau217","Horváth Gergő","ILLIK-E ISASZEGEN TEÁOR4711-ES FŐTEVÉKENYSÉGŰ ÜZLETET NYITNI A CÉGINFORMÁCIÓS RENDSZER ADATAI ALAPJÁN?","(+)",null,{"$f":"A73","v":"miau217"},{"$f":"B73","v":"Horváth Gergő"},":","Illik-e Isaszegen TEÁOR 4711-es főtevékenységű üzletet nyitni a céginformációs rendszer adatai alapján?","  xx  ","http://miau.gau.hu/miau/217/TDK-rezume_HG.docx"]
[null,"(MY-X team):","(Is it proper to open a grocery store in Isaszeg based on data from company information services?)"]
["miau217","Pitlik László","Startup vállalkozások kommunikációjának sikertényezői és kockázatos elemei a vállalkozások alapításának és indulásának fázisában (kivonat)","(+)",null,{"$f":"A75","v":"miau217"},{"$f":"B75","v":"Pitlik László"},":",{"$f":"C75","v":"Startup vállalkozások kommunikációjának sikertényezői és kockázatos elemei a vállalkozások alapításának és indulásának fázisában (kivonat)"},"  xx  ","http://miau.gau.hu/miau/217/startup_komm.docx"]
[null,"(MY-X team):","(Success and risk factors in the communication of founding and initializing phases in startups)"]
["miau217","Pitlik László","A sudoku hasonlóságelemzési nézete","(+)",null,{"$f":"A77","v":"miau217"},{"$f":"B77","v":"Pitlik László"},":",{"$f":"C77","v":"A sudoku hasonlóságelemzési nézete"},"  xx  ","http://miau.gau.hu/miau/217/sudoku_coco.xlsx"]
[null,"(MY-X team):","(Interpretation of a sudoku matrix based on similarity analysis)"]
["miau217","Pitlik László, Pitlik László (jun), Pitlik Mátyás, Pitlik Marcell","Solver csodák példatár III.","(+)",null,{"$f":"A79","v":"miau217"},{"$f":"B79","v":"Pitlik László, Pitlik László (jun), Pitlik Mátyás, Pitlik Marcell"},":",{"$f":"C79","v":"Solver csodák példatár III."},"  xx  ","http://miau.gau.hu/miau/217/solver_csodak_003.xlsx"]
[null,"(MY-X team):","(Case studies about using Solver - Part III.)"]
["miau217","Pitlik László","Összefoglaló adatok a KÉ2016 keretében a My-X team által rendezett eseményekről","(+)",null,{"$f":"A81","v":"miau217"},{"$f":"B81","v":"Pitlik László"},":",{"$f":"C81","v":"Összefoglaló adatok a KÉ2016 keretében a My-X team által rendezett eseményekről"},"  xx  ","http://miau.gau.hu/miau/217/ke2016.docx"]
[null,"(MY-X team):","(Night of Researchers 2016 - Summary)"]
["miau217","József Poór, Zuzana Dvořáková, László Pitlik, Katalin Dobrai, Zsuzsa Karoliny, Ferenc Farkas, Ildikó Éva Kovács ","Knowledge Management in Human Resource Management in Local Foreign Owned Subsidiaries - Focus Central and Eastern Europe","(+)",null,{"$f":"A83","v":"miau217"},{"$f":"B83","v":"József Poór, Zuzana Dvořáková, László Pitlik, Katalin Dobrai, Zsuzsa Karoliny, Ferenc Farkas, Ildikó Éva Kovács "},":",{"$f":"C83","v":"Knowledge Management in Human Resource Management in Local Foreign Owned Subsidiaries - Focus Central and Eastern Europe"},"  xx  ","http://miau.gau.hu/miau/217/Poor_Dvorakova_et%20al_AIB_CEE_presentation_Prague_2016_v5.pptx"]
[null,"(CEEIRT team):"]
["miau218","Pitlik László","Tanulmány: Tanácsadási tapasztalatok felsőoktatási és magán know-how startup-okban való hasznosítási lehetőségei kapcsán","(+)",null,{"$f":"A85","v":"miau218"},{"$f":"B85","v":"Pitlik László"},":","Tanácsadási tapasztalatok felsőoktatási és magán know-how startup-okban való hasznosítási lehetőségei kapcsán","  xx  ","http://miau.gau.hu/miau/218/bkik_2016.docx"]
[null,"(MY-X team):","(Consulting experiences about using private or institutional IPR in start-ups)"]
["miau218","Pitlik László","PPT: Tanácsadási tapasztalatok felsőoktatási és magán know-how startup-okban való hasznosítási lehetőségei kapcsán","(+)",null,{"$f":"A87","v":"miau218"},{"$f":"B87","v":"Pitlik László"},":","Tanácsadási tapasztalatok felsőoktatási és magán know-how startup-okban való hasznosítási lehetőségei kapcsán","  xx  ","http://miau.gau.hu/miau/218/bkik_20161026.pptx"]
[null,"(MY-X team):","(Consulting experiences about using private or institutional IPR in start-ups)"]
["miau218","Pitlik László","DPR-adatbázis, mint big-data értelmezési kísérletei","(+)",null,{"$f":"A89","v":"miau218"},{"$f":"B89","v":"Pitlik László"},":",{"$f":"C89","v":"DPR-adatbázis, mint big-data értelmezési kísérletei"},"  xx  ","http://miau.gau.hu/miau/218/dpr_big_data_v2.docx"]
[null,"(MY-X team):","(Experimental hermeneutics based on the DPR-database as a big-data issue)"]
["miau218","Pitlik László","Robot-evaluátor, avagy egy intézetigazgató munkájának objektivizálása","(+)",null,{"$f":"A91","v":"miau218"},{"$f":"B91","v":"Pitlik László"},":",{"$f":"C91","v":"Robot-evaluátor, avagy egy intézetigazgató munkájának objektivizálása"},"  xx  ","http://miau.gau.hu/miau/218/decens_docensek.docx"]
[null,"(MY-X team):","(Robot-evaluator, or more objectivity in the decision making processes of the higher education)"]
["miau218","Horváth Gergő","ILLIK-E ÜZLETI SZEMPONTBÓL ISASZEGEN TEÁOR4711-ET NYITNI A CÉGINFORMÁCIÓS ADATBANK ADATAI ALAPJÁN?","(+)",null,{"$f":"A93","v":"miau218"},{"$f":"B93","v":"Horváth Gergő"},":","Illik-e Isaszegen TEÁOR 4711-es főtevékenységű üzletet nyitni a céginformációs rendszer adatai alapján?","  xx  ","http://miau.gau.hu/miau/218/szakdolgozat_4711.pdf"]
[null,"(SZIE GTK):","(Is it proper to open a grocery store in Isaszeg based on data from company information services?)"]
["miau218","Pitlik László, Jacsó Ferenc","Automatikus riasztási rendszerek paraméterezése","(+)",null,{"$f":"A95","v":"miau218"},{"$f":"B95","v":"Pitlik László, Jacsó Ferenc"},":",{"$f":"C95","v":"Automatikus riasztási rendszerek paraméterezése"},"  xx  ","http://miau.gau.hu/miau/218/pAHrAHmeters.docx"]
[null,"(MY-X team):","(Parameter settings for automated alert-generation systems)"]
["miau218","Pitlik László, Pitlik László (jun), Pitlik Mátyás, Pitlik Marcell","Solver-alapú feladatmegoldás: Példatár V.","(+)",null,{"$f":"A97","v":"miau218"},{"$f":"B97","v":"Pitlik László, Pitlik László (jun), Pitlik Mátyás, Pitlik Marcell"},":",{"$f":"C97","v":"Solver-alapú feladatmegoldás: Példatár V."},"  xx  ","http://miau.gau.hu/miau/218/solver_csodak_005.xlsx"]
[null,"(MY-X team):","(Solver-based problem solving: Case V.)"]
["miau219","Pitlik László","Innováció, big data, adatbányászat","(+)",null,{"$f":"A99","v":"miau219"},{"$f":"B99","v":"Pitlik László"},":",{"$f":"C99","v":"Innováció, big data, adatbányászat"},"  xx  ","http://miau.gau.hu/miau/219/20161110_fvsz.pptx"]
[null,"(MY-X team):","(Innovation, big-data, data-mining)"]
["miau219","Bunkóczi László","Informatics Economy","(+)",null,{"$f":"A101","v":"miau219"},{"$f":"B101","v":"Bunkóczi László"},":",{"$f":"C101","v":"Informatics Economy"},"  xx  ","http://miau.gau.hu/miau/219/Informatics_Economy_short.pdf"]
[null,"(MY-X team):"]
["miau219","Pitlik László","DPR-adatbázis, mint big-data értelmezési kísérletei II.","(+)",null,{"$f":"A103","v":"miau219"},{"$f":"B103","v":"Pitlik László"},":",{"$f":"C103","v":"DPR-adatbázis, mint big-data értelmezési kísérletei II."},"  xx  ","http://miau.gau.hu/miau/219/dpr_big_data2_v1.docx"]
[null,"(MY-X team):","(Experimental hermeneutics based on the DPR-database as a big-data issue \u0096 Part II.)"]
["miau219","Pitlik László","Paradigmaváltás a felsőoktatási középvezetői aktivitások területén","(+)",null,{"$f":"A105","v":"miau219"},{"$f":"B105","v":"Pitlik László"},":",{"$f":"C105","v":"Paradigmaváltás a felsőoktatási középvezetői aktivitások területén"},"  xx  ","http://miau.gau.hu/miau/219/tti_pl.docx"]
[null,"(MY-X team):","(Strategic reform of leading institutes in higher education)"]
["miau219","Pitlik László","PPT: Start-up vállalkozások kommunikációjának sikertényezői és kockázatos elemei a vállalkozások alapításának és indulásának fázisában","(+)",null,{"$f":"A107","v":"miau219"},{"$f":"B107","v":"Pitlik László"},":","Start-up vállalkozások kommunikációjának sikertényezői és kockázatos elemei a vállalkozások alapításának és indulásának fázisában","  xx  ","http://miau.gau.hu/miau/219/mta_20161111.pptx"]
[null,"(MY-X team):","(Success and risk factors in the communication of founding and initializing phases in start-ups)"]
["miau219","Pitlik László","Start-up vállalkozások kommunikációjának sikertényezői és kockázatos elemei a vállalkozások alapításának és indulásának fázisában","(+)",null,{"$f":"A109","v":"miau219"},{"$f":"B109","v":"Pitlik László"},":",{"$f":"C109","v":"Start-up vállalkozások kommunikációjának sikertényezői és kockázatos elemei a vállalkozások alapításának és indulásának fázisában"},"  xx  ","http://miau.gau.hu/miau/219/mta_20161111.docx"]
[null,"(MY-X team):","(Success and risk factors in the communication of founding and initializing phases in start-ups)"]
["miau220","Pitlik László (jun)","PPT: Hasonlóságelemzés a szummatív értékelésben","(+)",null,{"$f":"A111","v":"miau220"},{"$f":"B111","v":"Pitlik László (jun)"},":","Hasonlóságelemzés a szummatív értékelésben","  xx  ","http://miau.gau.hu/miau/220/PitlikLaszlo_tdk2016.pptx"]
[null,"(MY-X team):","(Summative evaluation vs. similarity analysis)"]
["miau220","Pitlik László (jun)","Hasonlóságelemzés a szummatív értékelésben","(+)",null,{"$f":"A113","v":"miau220"},{"$f":"B113","v":"Pitlik László (jun)"},":",{"$f":"C113","v":"Hasonlóságelemzés a szummatív értékelésben"},"  xx  ","http://miau.gau.hu/miau/220/PitlikLaszlo_tdkabs2016.docx"]
[null,"(MY-X team):","(Summative evaluation vs. similarity analysis)"]
["miau220","Czúni Dániel","A FIFA futball szimulációs videójáték Google Trends\u0096alapú népszerűségének benchmarking-elemzése anti-diszkriminatív modellek alkalmazásával","(+)",null,{"$f":"A115","v":"miau220"},{"$f":"B115","v":"Czúni Dániel"},":",{"$f":"C115","v":"A FIFA futball szimulációs videójáték Google Trends\u0096alapú népszerűségének benchmarking-elemzése anti-diszkriminatív modellek alkalmazásával"},"  xx  ","http://miau.gau.hu/miau/220/FIFA_See.pdf"]
[null,"(MY-X team):","Estimation of market chances for a FIFA simulation game based on similarity analyses"]
["miau220","Horváth Gergő","PPT: ILLIK-E ÜZLETI SZEMPONTBÓL ISASZEGEN TEÁOR4711-ET NYITNI A CÉGINFORMÁCIÓS ADATBANK ADATAI ALAPJÁN?","(+)",null,{"$f":"A117","v":"miau220"},{"$f":"B117","v":"Horváth Gergő"},":","Illik-e Isaszegen TEÁOR 4711-es főtevékenységű üzletet nyitni a céginformációs rendszer adatai alapján?","  xx  ","http://miau.gau.hu/miau/220/4711.pptx"]
[null,"(MY-X team):","(Is it proper to open a grocery store in Isaszeg based on data from company information services?)"]
["miau220","Pitlik László","A new concept of the measurable Europeanism \u0096 an approach based on term creation capabilities of artificial intelligence","(+)",null,{"$f":"A119","v":"miau220"},{"$f":"B119","v":"Pitlik László"},":",{"$f":"C119","v":"A new concept of the measurable Europeanism \u0096 an approach based on term creation capabilities of artificial intelligence"},"  xx  ","http://miau.gau.hu/miau/220/ECONOMICS_WORLD_ABSTRACT.docx"]
[null,"(MY-X team):"]
["miau220","Pitlik László (jun)","Wolfram_Chemistry+, avagy az informatika alkalmazási lehetőségei kémiai számítási feladatok megoldása során","(+)",null,{"$f":"A121","v":"miau220"},{"$f":"B121","v":"Pitlik László (jun)"},":",{"$f":"C121","v":"Wolfram_Chemistry+, avagy az informatika alkalmazási lehetőségei kémiai számítási feladatok megoldása során"},"  xx  ","http://miau.gau.hu/miau/220/Modszertancikk_kk5t2mt4_PitlikL.docx"]
[null,"(MY-X team):","(Problem Solving Robot for chemistry education)"]
["miau220","Pitlik László","Cutting Robot","(+)",null,{"$f":"A123","v":"miau220"},{"$f":"B123","v":"Pitlik László"},":",{"$f":"C123","v":"Cutting Robot"},"  xx  ","http://miau.gau.hu/myx-free/tools/cutting_robot/"]
[null,"(MY-X team):"]
["miau220","Pitlik László, Pitlik László (jun), Horváth Mónika Kitti","A FOGALOM-ALKOTÁS EMBERI KÉPESSÉGE AZ AUTOMATIZÁLT TUDÁSMENEDZSMENT ALAPJA","(+)",null,{"$f":"A125","v":"miau220"},{"$f":"B125","v":"Pitlik László, Pitlik László (jun), Horváth Mónika Kitti"},":","A fogalom-alkotás emberi képessége az automatizált tudásmenedzsment alapja","  xx  ","http://miau.gau.hu/miau/220/mta_tm_mb_2017.docx"]
[null,"(MY-X team):","(THE HUMAN CAPABILITY OF TERM-CREATION IS THE CORE OF THE AUTOMATED KNOWLEDGE MANAGEMENT)"]
["miau221","Pitlik László, Pitlik László (jun)","Cenzusos választás kazohin módra","(+)",null,{"$f":"A127","v":"miau221"},{"$f":"B127","v":"Pitlik László, Pitlik László (jun)"},":",{"$f":"C127","v":"Cenzusos választás kazohin módra"},"  xx  ","http://miau.gau.hu/miau/221/kazohin_census.docx"]
[null,"(MY-X team):","(Elections based on a kazohin census)"]
["miau221","Pitlik Mátyás","Cutting Robot V.2.0.","(+)",null,{"$f":"A129","v":"miau221"},{"$f":"B129","v":"Pitlik Mátyás"},":","Cutting Robot V.2.0.","  xx  ","http://miau.gau.hu/myx-free/tools/cutting_robot/cutting2.php"]
[null,"(MY-X team):"]
["miau221","Pitlik Marcell","NTP-NFTÖ pályázat kutatási terve","(+)",null,{"$f":"A131","v":"miau221"},{"$f":"B131","v":"Pitlik Marcell"},":","NTP-NFTÖ pályázat kutatási terve","  xx  ","http://miau.gau.hu/miau/221/ntp_nfto.docx"]
[null,"(MY-X team):"]
["miau221","Pitlik László","Hasonlóságelemzés speciális alakzatai","(+)",null,{"$f":"A133","v":"miau221"},{"$f":"B133","v":"Pitlik László"},":","Hasonlóságelemzés speciális alakzatai","  xx  ","http://miau.gau.hu/miau/221/minden_maskent_egyforma.xlsx"]
[null,"(MY-X team):","(Special constellations in the similarity analysis)"]
["miau221","Pitlik László (jun)","Similarity analyses in the process of summative evaluation","(+)",null,{"$f":"A135","v":"miau221"},{"$f":"B135","v":"Pitlik László (jun)"},":","Similarity analyses in the process of summative evaluation","  xx  ","http://miau.gau.hu/miau/221/rezume_49908_int.docx"]
[null,"(MY-X team):"]
["miau221","Pitlik Marcell","Robottanár kifejlesztése és alkalmazása a geometriaoktatásban","(+)",null,{"$f":"A137","v":"miau221"},{"$f":"B137","v":"Pitlik Marcell"},":","Robottanár kifejlesztése és alkalmazása a geometriaoktatásban","  xx  ","http://miau.gau.hu/miau/221/ICYS_2017_Pitlik_Marcell.pdf"]
[null,"(MY-X team):","(Development of robot teachers and their application in the field of geometry)"]
["miau221","Pitlik László, Kalotaszegi András, Buczkó József, Hargitay Zoltán","Precíziós gazdálkodás az emberi agyban - VII. rész","(+)",null,{"$f":"A139","v":"miau221"},{"$f":"B139","v":"Pitlik László, Kalotaszegi András, Buczkó József, Hargitay Zoltán"},":","Precíziós gazdálkodás az emberi agyban - VII. rész","  xx  ","http://miau.gau.hu/miau/221/fft_v6.xlsx"]
[null,"(MY-X team):","(Precision farming in the human brain - Part VII.)"]
["miau221","Pitlik László, Kalotaszegi András, Buczkó József, Hargitay Zoltán","Precíziós gazdálkodás az emberi agyban - VI. rész","(+)",null,{"$f":"A141","v":"miau221"},{"$f":"B141","v":"Pitlik László, Kalotaszegi András, Buczkó József, Hargitay Zoltán"},":","Precíziós gazdálkodás az emberi agyban - VI. rész","  xx  ","http://miau.gau.hu/miau/221/fft_v5.xlsx"]
[null,"(MY-X team):","(Precision farming in the human brain - Part VI.)"]
["miau221","Pitlik László, Kalotaszegi András, Buczkó József, Hargitay Zoltán","Precíziós gazdálkodás az emberi agyban - V. rész","(+)",null,{"$f":"A143","v":"miau221"},{"$f":"B143","v":"Pitlik László, Kalotaszegi András, Buczkó József, Hargitay Zoltán"},":","Precíziós gazdálkodás az emberi agyban - V. rész","  xx  ","http://miau.gau.hu/miau/221/fft_v4.xlsx"]
[null,"(MY-X team):","(Precision farming in the human brain - Part V.)"]
["miau221","Pitlik László, Kalotaszegi András, Buczkó József, Hargitay Zoltán","Precíziós gazdálkodás az emberi agyban - IV. rész","(+)",null,{"$f":"A145","v":"miau221"},{"$f":"B145","v":"Pitlik László, Kalotaszegi András, Buczkó József, Hargitay Zoltán"},":","Precíziós gazdálkodás az emberi agyban - IV. rész","  xx  ","http://miau.gau.hu/miau/221/fft_v3.xlsx"]
[null,"(MY-X team):","(Precision farming in the human brain - Part IV.)"]
["miau221","Pitlik László, Kalotaszegi András, Buczkó József, Hargitay Zoltán","Precíziós gazdálkodás az emberi agyban - III. rész","(+)",null,{"$f":"A147","v":"miau221"},{"$f":"B147","v":"Pitlik László, Kalotaszegi András, Buczkó József, Hargitay Zoltán"},":","Precíziós gazdálkodás az emberi agyban - III. rész","  xx  ","http://miau.gau.hu/miau/221/fft_v2.xlsx"]
[null,"(MY-X team):","(Precision farming in the human brain - Part III.)"]
["miau221","Pitlik László","Wikipedia - avagy a szerkesztés operatív tapasztalatai","(+)",null,{"$f":"A149","v":"miau221"},{"$f":"B149","v":"Pitlik László"},":","Wikipedia - avagy a szerkesztés operatív tapasztalatai","  xx  ","http://miau.gau.hu/miau/221/Wikipedia.docx"]
[null,"(My-X team):","(Wikipedia \u0096 or experiences in editing)"]

{"sheet":"matarka","index":1,"n_rows":88,"n_cols":2,"rows_kept":88,"cut":false,"hidden":false,"merged":[]}
[null,"***"]
["Magyar Internetes Agrárinformatikai Újság (MIAÚ),2016,19,214"]
[{"$f":"nyers!F1","v":"miau214"},{"$f":"nyers!G1&nyers!H1&nyers!I1&nyers!J1&nyers!K1","v":"Pitlik László:Risk management of alternative models  xx  http://miau.gau.hu/miau/214/risk_management_of_solutions.xlsx"}]
[{"$f":"nyers!F3","v":"miau214"},{"$f":"nyers!G3&nyers!H3&nyers!I3&nyers!J3&nyers!K3","v":"Pitlik László:Alternative models in similarity analyses  xx  http://miau.gau.hu/miau/214/alter_coco.xlsx"}]
[{"$f":"nyers!F5","v":"miau214"},{"$f":"nyers!G5&nyers!H5&nyers!I5&nyers!J5&nyers!K5","v":"Pitlik László:Exploring connections between operation and marketing effects  xx  http://miau.gau.hu/miau/214/operation_marketing_mixed_model.xlsx"}]
[{"$f":"nyers!F7","v":"miau214"},{"$f":"nyers!G7&nyers!H7&nyers!I7&nyers!J7&nyers!K7","v":"Pitlik László (jun):A kvalitatív módszer egy értelmezése \u0096 és szerepe a kvantitatív kutatástervezésben  xx  http://miau.gau.hu/miau/214/Kvalitativ_ISSZK13-K2_PitlikL.docx"}]
[{"$f":"nyers!F9","v":"miau214"},{"$f":"nyers!G9&nyers!H9&nyers!I9&nyers!J9&nyers!K9","v":"Alföldy@Boruss András, Pitlik László:Next Generation Stress Management  xx  http://miau.gau.hu/miau/214/NGStress.pdf"}]
[{"$f":"nyers!F11","v":"miau214"},{"$f":"nyers!G11&nyers!H11&nyers!I11&nyers!J11&nyers!K11","v":"Alföldy@Boruss András, Pitlik László:Next Generation Stress Management  xx  http://miau.gau.hu/miau/214/NGStress.pptx"}]
[{"$f":"nyers!F13","v":"miau214"},{"$f":"nyers!G13&nyers!H13&nyers!I13&nyers!J13&nyers!K13","v":"Alföldy@Boruss András, Pitlik László:Next Generation Stress Management  xx  http://miau.gau.hu/miau/214/NGStress.mp4"}]
[{"$f":"nyers!F15","v":"miau214"},{"$f":"nyers!G15&nyers!H15&nyers!I15&nyers!J15&nyers!K15","v":"Zsolt Fülöp, Péter Kollár, László Pitlik:Robot-coach or a New Approach of Competency-based Human Development  xx  http://miau.gau.hu/miau/214/wcci_v3_ENG_pl.docx"}]
[{"$f":"nyers!F17","v":"miau214"},{"$f":"nyers!G17&nyers!H17&nyers!I17&nyers!J17&nyers!K17","v":"Pitlik László:Analyse of broken time series in semi-causal approaches  xx  http://miau.gau.hu/miau/214/semi_causality.xlsx"}]
[{"$f":"nyers!F19","v":"miau214"},{"$f":"nyers!G19&nyers!H19&nyers!I19&nyers!J19&nyers!K19","v":"Pitlik László:Analyse of parellel time series in semi-causal approaches  xx  http://miau.gau.hu/miau/214/parallel_timeseries.xlsx"}]
[{"$f":"nyers!F21","v":"miau214"},{"$f":"nyers!G21&nyers!H21&nyers!I21&nyers!J21&nyers!K21","v":"Pitlik László, Jacsó Ferenc:Idősoros energia-fogyasztási adatok kiugró értékeinek automatizált feltárási lehetőségei  xx  http://miau.gau.hu/miau/214/idosoros_energiafogyasztas_kiugro_ertekei.docx"}]
[{"$f":"nyers!F23","v":"miau214"},{"$f":"nyers!G23&nyers!H23&nyers!I23&nyers!J23&nyers!K23","v":"Horváth Mónika Kitti, Pitlik László:Milyen kulturális tényezők lehetnek hatással az USA tagállamainak mozgástudatosságára? - 2. rész  xx  http://miau.gau.hu/miau/214/szie_multikulti_sport.docx"}]
["Magyar Internetes Agrárinformatikai Újság (MIAÚ),2016,19,215"]
[{"$f":"nyers!A25","v":"miau215"},{"$f":"nyers!G25&nyers!H25&nyers!I25&nyers!J25&nyers!K25","v":"László Pitlik, Dávid Fehér, Ferenc Szani, Mátyás Pitlik, Zsolt Fülöp, Péter Kollár :gUd-mOOsic: a complex simulation tool for learning and teaching music  xx  http://miau.gau.hu/miau/215/gud_moosic_v2.docx"}]
[{"$f":"nyers!A27","v":"miau215"},{"$f":"nyers!G27&nyers!H27&nyers!I27&nyers!J27&nyers!K27","v":"Pitlik László, Jacsó Ferenc:Távközlési bázisállomások monitoring és kontrolling rendszerének fejlesztése  xx  http://miau.gau.hu/miau/215/bazis_v2.doc"}]
[{"$f":"nyers!A29","v":"miau215"},{"$f":"nyers!G29&nyers!H29&nyers!I29&nyers!J29&nyers!K29","v":"Pitlik László (jun):A matematikai szorongás hasonlóságelemzési modellje  xx  http://miau.gau.hu/miau/215/kardos.pptx"}]
[{"$f":"nyers!A31","v":"miau215"},{"$f":"nyers!G31&nyers!H31&nyers!I31&nyers!J31&nyers!K31","v":"Fülöp Zsolt, Kollár Péter, Pitlik László:Robot-coach or a New Approach of Competency-based Human Development  xx  http://miau.gau.hu/miau/215/WCCI2016.pptx"}]
[{"$f":"nyers!A33","v":"miau215"},{"$f":"nyers!G33&nyers!H33&nyers!I33&nyers!J33&nyers!K33","v":"Fülöp Zsolt, Kollár Péter, Pitlik László:Robot-coach or a New Approach of Competency-based Human Development  xx  http://miau.gau.hu/miau/215/wcci.html"}]
[{"$f":"nyers!A35","v":"miau215"},{"$f":"nyers!G35&nyers!H35&nyers!I35&nyers!J35&nyers!K35","v":"Pitlik László, Pitlik László (jun), Pitlik Mátyás, Pitlik Marcell:Solver-alapú feladatmegoldás: Példatár II.  xx  http://miau.gau.hu/miau/215/solver_csodak_002.xlsx"}]
[{"$f":"nyers!A37","v":"miau215"},{"$f":"nyers!G37&nyers!H37&nyers!I37&nyers!J37&nyers!K37","v":"Pitlik László:Deriving the best model  xx  http://miau.gau.hu/miau/215/instability_potential.xlsx"}]
[{"$f":"nyers!A39","v":"miau215"},{"$f":"nyers!G39&nyers!H39&nyers!I39&nyers!J39&nyers!K39","v":"Pitlik László:Regression models with explorative bubble rules  xx  http://miau.gau.hu/miau/215/regressions_with_bubbles.xlsx"}]
[{"$f":"nyers!A41","v":"miau215"},{"$f":"nyers!G41&nyers!H41&nyers!I41&nyers!J41&nyers!K41","v":"Pitlik László, Jacsó Ferenc:Gyanúgenerálás lehetőségei energia-fogyasztási idősoros adatok alapján  xx  http://miau.gau.hu/miau/215/Gyanugeneralas_energiafogyasztas_v1.docx"}]
[{"$f":"nyers!A43","v":"miau215"},{"$f":"nyers!G43&nyers!H43&nyers!I43&nyers!J43&nyers!K43","v":"Pitlik László:Események időbeliségének mintázatai, avagy hol húzódnak a határok a hit/asztrológia/tudomány fogalmai kapcsán?  xx  http://miau.gau.hu/miau/215/asztrologia_full_v2.doc"}]
["Magyar Internetes Agrárinformatikai Újság (MIAÚ),2016,19,216"]
[{"$f":"nyers!A45","v":"miau216"},{"$f":"nyers!G45&nyers!H45&nyers!I45&nyers!J45&nyers!K45","v":"Pitlik László:Deriving and interpretation of chained and parallel estimations  xx  http://miau.gau.hu/miau/216/chain_models.xlsx"}]
[{"$f":"nyers!A47","v":"miau216"},{"$f":"nyers!G47&nyers!H47&nyers!I47&nyers!J47&nyers!K47","v":"Pitlik László, Kalotaszegi András, Buczkó József:Precíziós gazdálkodás az emberi agyban - I. rész  xx  http://miau.gau.hu/miau/216/eeg_acc_v1.xls"}]
[{"$f":"nyers!A49","v":"miau216"},{"$f":"nyers!G49&nyers!H49&nyers!I49&nyers!J49&nyers!K49","v":"Pitlik László, Kalotaszegi András, Buczkó József:Precíziós gazdálkodás az emberi agyban - II. rész  xx  http://miau.gau.hu/miau/216/fft_v1.xlsx"}]
[{"$f":"nyers!A51","v":"miau216"},{"$f":"nyers!G51&nyers!H51&nyers!I51&nyers!J51&nyers!K51","v":"Pitlik László:Kutatási terv: a deep-neural-network gráfjai mennyiben feleltethetők meg a hasonlóságelemzések lépcsős függvényeinek?  xx  http://miau.gau.hu/miau/216/graphs_of_deep_learning_vs_similarities_and_staircase_functions.docx"}]
[{"$f":"nyers!A53","v":"miau216"},{"$f":"nyers!G53&nyers!H53&nyers!I53&nyers!J53&nyers!K53","v":"László Pitlik, Zsolt Fülöp, Péter Kollár, Imre Madarász :Exploring relative instances of exposure in the equilibrium of migration processes based on population characteristics  xx  http://miau.gau.hu/miau/216/JKEC-S-16-00168.pdf"}]
[{"$f":"nyers!A55","v":"miau216"},{"$f":"nyers!G55&nyers!H55&nyers!I55&nyers!J55&nyers!K55","v":"József Poór, Zuzana Dvořáková, László Pitlik, Katalin Dobrai, Zsuzsa Karoliny, Ferenc Farkas, Ildikó Éva Kovács :Knowledge Management in Human Resource Management in Local Foreign Owned Subsidiaries - Focus Central and Eastern Europe  xx  http://miau.gau.hu/miau/216/Knowledge_Management in Local Subsidiaries_AIB_Prague_2016_submission.pdf"}]
[{"$f":"nyers!A57","v":"miau216"},{"$f":"nyers!G57&nyers!H57&nyers!I57&nyers!J57&nyers!K57","v":"Pitlik László:A német tanácsadás sajátosságainak kritikai/kooperatív értelmezése  xx  http://miau.gau.hu/miau/216/nemet_tanacsadas.docx"}]
[{"$f":"nyers!A59","v":"miau216"},{"$f":"nyers!G59&nyers!H59&nyers!I59&nyers!J59&nyers!K59","v":"Pitlik László:Kazohin demokrácia, avagy a többség mibenlétének alakzatai  xx  http://miau.gau.hu/miau/216/rede_v1.docx"}]
[{"$f":"nyers!A61","v":"miau216"},{"$f":"nyers!G61&nyers!H61&nyers!I61&nyers!J61&nyers!K61","v":"Pitlik László:Intuitív/rendszerszintü erötérfelismerés a mobilitás racionális mozgatórugóinak feltárására\u0096avagy a szociofizika fogalma  xx  http://miau.gau.hu/miau/215/szocio_fizika_full.doc"}]
["Magyar Internetes Agrárinformatikai Újság (MIAÚ),2016,19,217"]
[{"$f":"nyers!A63","v":"miau217"},{"$f":"nyers!G63&nyers!H63&nyers!I63&nyers!J63&nyers!K63","v":"Horváth Gergő:Onlinemarkt für Lebensmittel in Deutschland: Status-Quo, Grenzen und Entwicklungspotenziale  xx  http://miau.gau.hu/miau/217/Gergo-Horvath-Seminararbeit.pdf"}]
[{"$f":"nyers!A65","v":"miau217"},{"$f":"nyers!G65&nyers!H65&nyers!I65&nyers!J65&nyers!K65","v":"Pitlik Dóra:Zeneszerzés potenciális szintje az általános iskola alsó tagozatában  xx  http://miau.gau.hu/miau/217/PD-kottavetok.pdf"}]
[{"$f":"nyers!A67","v":"miau217"},{"$f":"nyers!G67&nyers!H67&nyers!I67&nyers!J67&nyers!K67","v":"Pitlik László, Pitlik László (jun), Pitlik Mátyás, Pitlik Marcell:Solver csodák példatár IV. (Case studies about using Solver - Part IV.)  xx  http://miau.gau.hu/miau/217/solver_csodak_004.xlsx"}]
[{"$f":"nyers!A69","v":"miau217"},{"$f":"nyers!G69&nyers!H69&nyers!I69&nyers!J69&nyers!K69","v":"Pitlik László:MIAÚ, a nagykorúvá vált médium, avagy távol a kánontól, s mégis az élbolyban?!  xx  http://miau.gau.hu/miau/217/miau_1998_2016.docx"}]
[{"$f":"nyers!A71","v":"miau217"},{"$f":"nyers!G71&nyers!H71&nyers!I71&nyers!J71&nyers!K71","v":"Szergej Vinogradov, Pitlik László:Kérdőív-alapú elemzések lehetőségi körének kombinatorikai áttekintése - II. rész  xx  http://miau.gau.hu/miau/217/misfogkep_v2.doc"}]
[{"$f":"nyers!A73","v":"miau217"},{"$f":"nyers!G73&nyers!H73&nyers!I73&nyers!J73&nyers!K73","v":"Horváth Gergő:Illik-e Isaszegen TEÁOR 4711-es főtevékenységű üzletet nyitni a céginformációs rendszer adatai alapján?  xx  http://miau.gau.hu/miau/217/TDK-rezume_HG.docx"}]
[{"$f":"nyers!A75","v":"miau217"},{"$f":"nyers!G75&nyers!H75&nyers!I75&nyers!J75&nyers!K75","v":"Pitlik László:Startup vállalkozások kommunikációjának sikertényezői és kockázatos elemei a vállalkozások alapításának és indulásának fázisában (kivonat)  xx  http://miau.gau.hu/miau/217/startup_komm.docx"}]
[{"$f":"nyers!A77","v":"miau217"},{"$f":"nyers!G77&nyers!H77&nyers!I77&nyers!J77&nyers!K77","v":"Pitlik László:A sudoku hasonlóságelemzési nézete  xx  http://miau.gau.hu/miau/217/sudoku_coco.xlsx"}]
[{"$f":"nyers!A79","v":"miau217"},{"$f":"nyers!G79&nyers!H79&nyers!I79&nyers!J79&nyers!K79","v":"Pitlik László, Pitlik László (jun), Pitlik Mátyás, Pitlik Marcell:Solver csodák példatár III.  xx  http://miau.gau.hu/miau/217/solver_csodak_003.xlsx"}]
[{"$f":"nyers!A81","v":"miau217"},{"$f":"nyers!G81&nyers!H81&nyers!I81&nyers!J81&nyers!K81","v":"Pitlik László:Összefoglaló adatok a KÉ2016 keretében a My-X team által rendezett eseményekről  xx  http://miau.gau.hu/miau/217/ke2016.docx"}]
[{"$f":"nyers!A83","v":"miau217"},{"$f":"nyers!G83&nyers!H83&nyers!I83&nyers!J83&nyers!K83","v":"József Poór, Zuzana Dvořáková, László Pitlik, Katalin Dobrai, Zsuzsa Karoliny, Ferenc Farkas, Ildikó Éva Kovács :Knowledge Management in Human Resource Management in Local Foreign Owned Subsidiaries - Focus Central and Eastern Europe  xx  http://miau.gau.hu/miau/217/Poor_Dvorakova_et%20al_AIB_CEE_presentation_Prague_2016_v5.pptx"}]
["Magyar Internetes Agrárinformatikai Újság (MIAÚ),2016,19,218"]
[{"$f":"nyers!A85","v":"miau218"},{"$f":"nyers!G85&nyers!H85&nyers!I85&nyers!J85&nyers!K85","v":"Pitlik László:Tanácsadási tapasztalatok felsőoktatási és magán know-how startup-okban való hasznosítási lehetőségei kapcsán  xx  http://miau.gau.hu/miau/218/bkik_2016.docx"}]
[{"$f":"nyers!A87","v":"miau218"},{"$f":"nyers!G87&nyers!H87&nyers!I87&nyers!J87&nyers!K87","v":"Pitlik László:Tanácsadási tapasztalatok felsőoktatási és magán know-how startup-okban való hasznosítási lehetőségei kapcsán  xx  http://miau.gau.hu/miau/218/bkik_20161026.pptx"}]
[{"$f":"nyers!A89","v":"miau218"},{"$f":"nyers!G89&nyers!H89&nyers!I89&nyers!J89&nyers!K89","v":"Pitlik László:DPR-adatbázis, mint big-data értelmezési kísérletei  xx  http://miau.gau.hu/miau/218/dpr_big_data_v2.docx"}]
[{"$f":"nyers!A91","v":"miau218"},{"$f":"nyers!G91&nyers!H91&nyers!I91&nyers!J91&nyers!K91","v":"Pitlik László:Robot-evaluátor, avagy egy intézetigazgató munkájának objektivizálása  xx  http://miau.gau.hu/miau/218/decens_docensek.docx"}]
[{"$f":"nyers!A93","v":"miau218"},{"$f":"nyers!G93&nyers!H93&nyers!I93&nyers!J93&nyers!K93","v":"Horváth Gergő:Illik-e Isaszegen TEÁOR 4711-es főtevékenységű üzletet nyitni a céginformációs rendszer adatai alapján?  xx  http://miau.gau.hu/miau/218/szakdolgozat_4711.pdf"}]
[{"$f":"nyers!A95","v":"miau218"},{"$f":"nyers!G95&nyers!H95&nyers!I95&nyers!J95&nyers!K95","v":"Pitlik László, Jacsó Ferenc:Automatikus riasztási rendszerek paraméterezése  xx  http://miau.gau.hu/miau/218/pAHrAHmeters.docx"}]
[{"$f":"nyers!A97","v":"miau218"},{"$f":"nyers!G97&nyers!H97&nyers!I97&nyers!J97&nyers!K97","v":"Pitlik László, Pitlik László (jun), Pitlik Mátyás, Pitlik Marcell:Solver-alapú feladatmegoldás: Példatár V.  xx  http://miau.gau.hu/miau/218/solver_csodak_005.xlsx"}]
["Magyar Internetes Agrárinformatikai Újság (MIAÚ),2016,19,219"]
[{"$f":"nyers!A99","v":"miau219"},{"$f":"nyers!G99&nyers!H99&nyers!I99&nyers!J99&nyers!K99","v":"Pitlik László:Innováció, big data, adatbányászat  xx  http://miau.gau.hu/miau/219/20161110_fvsz.pptx"}]
[{"$f":"nyers!A101","v":"miau219"},{"$f":"nyers!G101&nyers!H101&nyers!I101&nyers!J101&nyers!K101","v":"Bunkóczi László:Informatics Economy  xx  http://miau.gau.hu/miau/219/Informatics_Economy_short.pdf"}]
[{"$f":"nyers!A103","v":"miau219"},{"$f":"nyers!G103&nyers!H103&nyers!I103&nyers!J103&nyers!K103","v":"Pitlik László:DPR-adatbázis, mint big-data értelmezési kísérletei II.  xx  http://miau.gau.hu/miau/219/dpr_big_data2_v1.docx"}]
[{"$f":"nyers!A105","v":"miau219"},{"$f":"nyers!G105&nyers!H105&nyers!I105&nyers!J105&nyers!K105","v":"Pitlik László:Paradigmaváltás a felsőoktatási középvezetői aktivitások területén  xx  http://miau.gau.hu/miau/219/tti_pl.docx"}]
[{"$f":"nyers!A107","v":"miau219"},{"$f":"nyers!G107&nyers!H107&nyers!I107&nyers!J107&nyers!K107","v":"Pitlik László:Start-up vállalkozások kommunikációjának sikertényezői és kockázatos elemei a vállalkozások alapításának és indulásának fázisában  xx  http://miau.gau.hu/miau/219/mta_20161111.pptx"}]
[{"$f":"nyers!A109","v":"miau219"},{"$f":"nyers!G109&nyers!H109&nyers!I109&nyers!J109&nyers!K109","v":"Pitlik László:Start-up vállalkozások kommunikációjának sikertényezői és kockázatos elemei a vállalkozások alapításának és indulásának fázisában  xx  http://miau.gau.hu/miau/219/mta_20161111.docx"}]
["Magyar Internetes Agrárinformatikai Újság (MIAÚ),2016,19,220"]
[{"$f":"nyers!A111","v":"miau220"},{"$f":"nyers!G111&nyers!H111&nyers!I111&nyers!J111&nyers!K111","v":"Pitlik László (jun):Hasonlóságelemzés a szummatív értékelésben  xx  http://miau.gau.hu/miau/220/PitlikLaszlo_tdk2016.pptx"}]
[{"$f":"nyers!A113","v":"miau220"},{"$f":"nyers!G113&nyers!H113&nyers!I113&nyers!J113&nyers!K113","v":"Pitlik László (jun):Hasonlóságelemzés a szummatív értékelésben  xx  http://miau.gau.hu/miau/220/PitlikLaszlo_tdkabs2016.docx"}]
[{"$f":"nyers!A115","v":"miau220"},{"$f":"nyers!G115&nyers!H115&nyers!I115&nyers!J115&nyers!K115","v":"Czúni Dániel:A FIFA futball szimulációs videójáték Google Trends\u0096alapú népszerűségének benchmarking-elemzése anti-diszkriminatív modellek alkalmazásával  xx  http://miau.gau.hu/miau/220/FIFA_See.pdf"}]
[{"$f":"nyers!A117","v":"miau220"},{"$f":"nyers!G117&nyers!H117&nyers!I117&nyers!J117&nyers!K117","v":"Horváth Gergő:Illik-e Isaszegen TEÁOR 4711-es főtevékenységű üzletet nyitni a céginformációs rendszer adatai alapján?  xx  http://miau.gau.hu/miau/220/4711.pptx"}]
[{"$f":"nyers!A119","v":"miau220"},{"$f":"nyers!G119&nyers!H119&nyers!I119&nyers!J119&nyers!K119","v":"Pitlik László:A new concept of the measurable Europeanism \u0096 an approach based on term creation capabilities of artificial intelligence  xx  http://miau.gau.hu/miau/220/ECONOMICS_WORLD_ABSTRACT.docx"}]
[{"$f":"nyers!A121","v":"miau220"},{"$f":"nyers!G121&nyers!H121&nyers!I121&nyers!J121&nyers!K121","v":"Pitlik László (jun):Wolfram_Chemistry+, avagy az informatika alkalmazási lehetőségei kémiai számítási feladatok megoldása során  xx  http://miau.gau.hu/miau/220/Modszertancikk_kk5t2mt4_PitlikL.docx"}]
[{"$f":"nyers!A123","v":"miau220"},{"$f":"nyers!G123&nyers!H123&nyers!I123&nyers!J123&nyers!K123","v":"Pitlik László:Cutting Robot  xx  http://miau.gau.hu/myx-free/tools/cutting_robot/"}]
[{"$f":"nyers!A125","v":"miau220"},{"$f":"nyers!G125&nyers!H125&nyers!I125&nyers!J125&nyers!K125","v":"Pitlik László, Pitlik László (jun), Horváth Mónika Kitti:A fogalom-alkotás emberi képessége az automatizált tudásmenedzsment alapja  xx  http://miau.gau.hu/miau/220/mta_tm_mb_2017.docx"}]
[null,"***"]
[{"$f":"nyers!A127","v":"miau221"},{"$f":"nyers!G127&nyers!H127&nyers!I127&nyers!J127&nyers!K127","v":"Pitlik László, Pitlik László (jun):Cenzusos választás kazohin módra  xx  http://miau.gau.hu/miau/221/kazohin_census.docx"}]
[{"$f":"nyers!A129","v":"miau221"},{"$f":"nyers!G129&nyers!H129&nyers!I129&nyers!J129&nyers!K129","v":"Pitlik Mátyás:Cutting Robot V.2.0.  xx  http://miau.gau.hu/myx-free/tools/cutting_robot/cutting2.php"}]
[{"$f":"nyers!A131","v":"miau221"},{"$f":"nyers!G131&nyers!H131&nyers!I131&nyers!J131&nyers!K131","v":"Pitlik Marcell:NTP-NFTÖ pályázat kutatási terve  xx  http://miau.gau.hu/miau/221/ntp_nfto.docx"}]
[{"$f":"nyers!A133","v":"miau221"},{"$f":"nyers!G133&nyers!H133&nyers!I133&nyers!J133&nyers!K133","v":"Pitlik László:Hasonlóságelemzés speciális alakzatai  xx  http://miau.gau.hu/miau/221/minden_maskent_egyforma.xlsx"}]
[{"$f":"nyers!A135","v":"miau221"},{"$f":"nyers!G135&nyers!H135&nyers!I135&nyers!J135&nyers!K135","v":"Pitlik László (jun):Similarity analyses in the process of summative evaluation  xx  http://miau.gau.hu/miau/221/rezume_49908_int.docx"}]
[{"$f":"nyers!A137","v":"miau221"},{"$f":"nyers!G137&nyers!H137&nyers!I137&nyers!J137&nyers!K137","v":"Pitlik Marcell:Robottanár kifejlesztése és alkalmazása a geometriaoktatásban  xx  http://miau.gau.hu/miau/221/ICYS_2017_Pitlik_Marcell.pdf"}]
[{"$f":"nyers!A139","v":"miau221"},{"$f":"nyers!G139&nyers!H139&nyers!I139&nyers!J139&nyers!K139","v":"Pitlik László, Kalotaszegi András, Buczkó József, Hargitay Zoltán:Precíziós gazdálkodás az emberi agyban - VII. rész  xx  http://miau.gau.hu/miau/221/fft_v6.xlsx"}]
[{"$f":"nyers!A141","v":"miau221"},{"$f":"nyers!G141&nyers!H141&nyers!I141&nyers!J141&nyers!K141","v":"Pitlik László, Kalotaszegi András, Buczkó József, Hargitay Zoltán:Precíziós gazdálkodás az emberi agyban - VI. rész  xx  http://miau.gau.hu/miau/221/fft_v5.xlsx"}]
[{"$f":"nyers!A143","v":"miau221"},{"$f":"nyers!G143&nyers!H143&nyers!I143&nyers!J143&nyers!K143","v":"Pitlik László, Kalotaszegi András, Buczkó József, Hargitay Zoltán:Precíziós gazdálkodás az emberi agyban - V. rész  xx  http://miau.gau.hu/miau/221/fft_v4.xlsx"}]
[{"$f":"nyers!A145","v":"miau221"},{"$f":"nyers!G145&nyers!H145&nyers!I145&nyers!J145&nyers!K145","v":"Pitlik László, Kalotaszegi András, Buczkó József, Hargitay Zoltán:Precíziós gazdálkodás az emberi agyban - IV. rész  xx  http://miau.gau.hu/miau/221/fft_v3.xlsx"}]
[{"$f":"nyers!A147","v":"miau221"},{"$f":"nyers!G147&nyers!H147&nyers!I147&nyers!J147&nyers!K147","v":"Pitlik László, Kalotaszegi András, Buczkó József, Hargitay Zoltán:Precíziós gazdálkodás az emberi agyban - III. rész  xx  http://miau.gau.hu/miau/221/fft_v2.xlsx"}]
[{"$f":"nyers!A149","v":"miau221"},{"$f":"nyers!G149&nyers!H149&nyers!I149&nyers!J149&nyers!K149","v":"Pitlik László:Wikipedia - avagy a szerkesztés operatív tapasztalatai  xx  http://miau.gau.hu/miau/221/Wikipedia.docx"}]
[]
[null,{"$f":"nyers!G151&nyers!H151&nyers!I151&nyers!J151&nyers!K151","v":""}]
[]
[null,{"$f":"nyers!G153&nyers!H153&nyers!I153&nyers!J153&nyers!K153","v":""}]